Workbook

Sheet Sheet1
A1: 2025年年度维修组水电班五金耗材采购报价表
A2: 序号 | B2: 名称 | C2: 规格材质 | D2: 单位 | E2: 数量 | F2: 全费用单价限价（元） | G2: 全费用单价限价小计（元） | H2: 供应商所报单价（元） | I2: 合价（元） | J2: 备注
A3: 1 | B3: PPR热水管 | C3: φ20*2.3 | D3: m | E3: 800 | F3: 3.5 | G3: =E3*F3 -> 2800 | J3: 新国标、满足压力1.6mpa
A4: 2 | B4: PPR热水管 | C4: φ25*2.3 | D4: m | E4: 1200 | F4: 5 | G4: =E4*F4 -> 6000 | J4: 新国标、满足压力1.6mpa
A5: 3 | B5: PPR热水管 | C5: φ32*2.9 | D5: m | E5: 1500 | F5: 8 | G5: 12000 | J5: 新国标、满足压力1.6mpa
A6: 4 | B6: PPR热水管 | C6: φ40*3.7 | D6: m | E6: 800 | F6: 10 | G6: 8000 | J6: 新国标、满足压力1.6mpa
A7: 5 | B7: PPR热水管 | C7: φ50*4.6 | D7: m | E7: 500 | F7: 12 | G7: 6000 | J7: 新国标、满足压力1.6mpa
A8: 6 | B8: PPR热水管 | C8: φ63*5.8 | D8: m | E8: 2000 | F8: 32 | G8: 64000 | J8: 新国标、满足压力1.6mpa
A9: 7 | B9: φ20PPR直接 | D9: 个 | E9: 300 | F9: 0.6 | G9: 180 | J9: 新国标
A10: 8 | B10: φ25PPR直接 | D10: 个 | E10: 500 | F10: 1 | G10: 500 | J10: 新国标
A11: 9 | B11: φ32PPR直接 | D11: 个 | E11: 100 | F11: 1.2 | G11: 120 | J11: 新国标
A12: 10 | B12: φ40PPR直接 | D12: 个 | E12: 50 | F12: 1.8 | G12: 90 | J12: 新国标
A13: 11 | B13: φ50PPR直接 | D13: 个 | E13: 100 | F13: 2.5 | G13: 250 | J13: 新国标
A14: 12 | B14: φ63PPR直接 | D14: 个 | E14: 200 | F14: 4 | G14: 800 | J14: 新国标
A15: 13 | B15: φ20PPR弯头 | D15: 个 | E15: 150 | F15: 1 | G15: 150 | J15: 新国标
A16: 14 | B16: φ25PPR弯头 | D16: 个 | E16: 200 | F16: 2 | G16: 400 | J16: 新国标
A17: 15 | B17: φ32PPR弯头 | D17: 个 | E17: 200 | F17: 2.5 | G17: 500 | J17: 新国标
A18: 16 | B18: φ40PPR弯头 | D18: 个 | E18: 120 | F18: 3.2 | G18: 384 | J18: 新国标
A19: 17 | B19: φ50PPR弯头 | D19: 个 | E19: 100 | F19: 4 | G19: 400 | J19: 新国标
A20: 18 | B20: φ63PPR弯头 | D20: 个 | E20: 450 | F20: 9 | G20: 4050 | J20: 新国标
A21: 19 | B21: φPPR25变20三通 | D21: 个 | E21: 200 | F21: 1 | G21: 200 | J21: 新国标
A22: 20 | B22: φPPR32变25三通 | D22: 个 | E22: 300 | F22: 2.5 | G22: 750 | J22: 新国标
A23: 21 | B23: φPPR50变40三通 | D23: 个 | E23: 80 | F23: 8 | G23: 640 | J23: 新国标
A24: 22 | B24: φPPR63变50三通 | D24: 个 | E24: 70 | F24: 10 | G24: 700 | J24: 新国标
A25: 23 | B25: φ25PPR管变20直接 | D25: 个 | E25: 300 | F25: 0.6 | G25: 180 | J25: 新国标
A26: 24 | B26: φ32PPR管变25直接 | D26: 个 | E26: 200 | F26: 1.2 | G26: 240 | J26: 新国标
A27: 25 | B27: φ40PPR管变32直接 | D27: 个 | E27: 200 | F27: 1.5 | G27: 300 | J27: 新国标
A28: 26 | B28: φ50PPR管变40直接 | D28: 个 | E28: 150 | F28: 2.5 | G28: 375 | J28: 新国标
A29: 27 | B29: φ63PPR管变50直接 | D29: 个 | E29: 150 | F29: 6 | G29: 900 | J29: 新国标
A30: 28 | B30: φ20PPR堵帽 | D30: 个 | E30: 150 | F30: 1 | G30: 150 | J30: 新国标
A31: 29 | B31: φ25PPR堵帽 | D31: 个 | E31: 150 | F31: 1.2 | G31: 180 | J31: 新国标
A32: 30 | B32: φ32PPR堵帽 | D32: 个 | E32: 200 | F32: 1.6 | G32: 320 | J32: 新国标
A33: 31 | B33: φ40PPR堵帽 | D33: 个 | E33: 200 | F33: 1.8 | G33: 360 | J33: 新国标
A34: 32 | B34: φ50PPR堵帽 | D34: 个 | E34: 100 | F34: 2.8 | G34: 280 | J34: 新国标
A35: 33 | B35: φ63PPR堵帽 | D35: 个 | E35: 200 | F35: 5.2 | G35: 1040 | J35: 新国标
A36: 34 | B36: Φ20PPR活接铜球阀球阀 | D36: 个 | E36: 300 | F36: 15 | G36: =E36*F36 -> 4500 | J36: 新国标
A37: 35 | B37: φ25PPR活接铜球阀球阀 | D37: 个 | E37: 200 | F37: 20 | G37: 4000 | J37: 新国标
A38: 36 | B38: φ32PPR活接铜球阀球阀 | D38: 个 | E38: 200 | F38: 30 | G38: 6000 | J38: 新国标
A39: 37 | B39: φ40PPR活接铜球阀球阀 | D39: 个 | E39: 150 | F39: 45 | G39: 6750 | J39: 新国标
A40: 38 | B40: φ50PPR活接铜球阀球阀 | D40: 个 | E40: 60 | F40: 70 | G40: 4200 | J40: 新国标
A41: 39 | B41: φ50PPR上下截止阀球阀 | D41: 个 | E41: 40 | F41: 70 | G41: 2800 | J41: 新国标
A42: 40 | B42: φ63PPR上下截止阀球阀 | D42: 个 | E42: 100 | F42: 90 | G42: 9000 | J42: 新国标
A43: 41 | B43: φ20PPR管（1/2）内丝弯头 | D43: 个 | E43: 50 | F43: 6 | G43: 300 | J43: 新国标
A44: 42 | B44: φ25PPR管(3/4）内丝弯头 | D44: 个 | E44: 100 | F44: 7 | G44: 700 | J44: 新国标
A45: 43 | B45: φ32PPR管（3/4）内丝弯头 | D45: 个 | E45: 200 | F45: 9.2 | G45: 1840 | J45: 新国标
A46: 44 | B46: 不锈钢水龙头 | C46: 304不锈钢20管单冷 | D46: 个 | E46: 200 | F46: 15 | G46: 3000 | J46: =_xlfn.DISPIMG("ID_F5FF11AAA9CA445D8614A9BA2C15056B",1) -> =DISPIMG("ID_F5FF11AAA9CA445D8614A9BA2C15056B",1)
A47: 45 | B47: 洗手盆水龙头 | C47: 304不锈钢20管单冷 | D47: 个 | E47: 70 | F47: 45 | G47: 3150 | J47: =_xlfn.DISPIMG("ID_EEBA94AC3CD7424AA7CB97D4EF67CEEB",1) -> =DISPIMG("ID_EEBA94AC3CD7424AA7CB97D4EF67CEEB",1)
A48: 46 | B48: 水龙头阀芯 | C48: 20管 | D48: 个 | E48: 300 | F48: 4 | G48: 1200
A49: 47 | B49: 翻板式面盆下水器 | C49: 总长度17cm，口径60mm | D49: 套 | E49: 200 | F49: 10 | G49: 2000 | J49: =_xlfn.DISPIMG("ID_D0637C5B2B8841A48520A8DC05B2BA2F",1) -> =DISPIMG("ID_D0637C5B2B8841A48520A8DC05B2BA2F",1)
A50: 48 | B50: 洗手盆下水管 | C50: 80cm | D50: 根 | E50: 500 | F50: 6 | G50: 3000
A51: 49 | B51: 水箱 | C51: 容量7.5L | D51: 套 | E51: 25 | F51: 50 | G51: 1250 | J51: 含排水管、角阀，软连接、水箱按钮为圆形
A52: 50 | B52: 进水阀（水箱） | C52: 4分管 | D52: 个 | E52: 300 | F52: 15 | G52: 4500
A53: 51 | B53: 出水阀（水箱） | C53: 4分管 | D53: 个 | E53: 300 | F53: 17 | G53: 5100
A54: 52 | B54: 水箱连接管 | C54: 长度80cm | D54: 根 | E54: 200 | F54: 17 | G54: 3400 | J54: 不锈钢编织管
A55: 53 | B55: 水箱连接管 | C55: 长度60cm | D55: 根 | E55: 200 | F55: 12 | G55: 2400 | J55: 不锈钢编织管
A56: 54 | B56: 洗手台感应器 | C56: 20水管，电池 | D56: 个 | E56: 300 | F56: 18 | G56: 5400
A57: 55 | B57: 小便感应器 | C57: 8cm*5cm | D57: 套 | E57: 150 | F57: 80 | G57: 12000 | J57: 适配电磁阀和电池盒等配件
C58: 13cm*13cm | D58: 套 | E58: 70 | F58: 130 | G58: 9100
A59: 56 | B59: 7号电池 | C59: 碱性电池 | D59: 对 | E59: 1000 | F59: 2 | G59: 2000
A60: 57 | B60: 角阀20 | C60: 不锈钢 | D60: 个 | E60: 300 | F60: 10 | G60: 3000
A61: 58 | B61: 角阀32 | C61: 不锈钢 | D61: 个 | E61: 100 | F61: 15 | G61: 1500
A62: 59 | B62: 马桶盖（成人） | C62: 长度47cm-53cm | D62: 个 | E62: 45 | F62: 55 | G62: 2475
A63: 60 | B63: 马桶盖（儿童） | C63: 33cm*26.5cm | D63: 个 | E63: 25 | F63: 30 | G63: 750
A64: 61 | B64: 马桶盖按钮 | C64: 3.7cm | D64: 个 | E64: 50 | F64: 10 | G64: 500
A65: 62 | B65: 脚踏阀 | C65: 立式脚踏阀整体高度为11mm,进水口内径为32mm，内配黄铜阀芯，踏板长度为60mm | D65: 套 | E65: 75 | F65: 80 | G65: 6000 | J65: =_xlfn.DISPIMG("ID_5D7E244C3AF94D4581238FB8A2577C5F",1) -> =DISPIMG("ID_5D7E244C3AF94D4581238FB8A2577C5F",1)
C66: 卧式脚踏阀高度11cm，内配黄铜阀芯，踏板长度为60mm | D66: 套 | E66: 50 | F66: 100 | G66: 5000 | J66: =_xlfn.DISPIMG("ID_41F21CD236594A3DB89C3AE2A3493AA1",1) -> =DISPIMG("ID_41F21CD236594A3DB89C3AE2A3493AA1",1)
C67: 卧式脚踏阀配件（推杆阀芯） | D67: 个 | E67: 100 | F67: 15 | G67: 1500 | J67: =_xlfn.DISPIMG("ID_68CAFCE9159E40868AB4FE1C7970F709",1) -> =DISPIMG("ID_68CAFCE9159E40868AB4FE1C7970F709",1)
A68: 63 | B68: 手压式延时阀（小便槽） | C68: 接口为DN25 | D68: 个 | E68: 200 | F68: 35 | G68: =E68*F68 -> 7000
C69: 接口为DN20 | D69: 个 | E69: 200 | F69: 20 | G69: 4000
A70: 64 | B70: 厕所灭蚊灯（插电式） | C70: 360mm*240mm*130mm | D70: 个 | E70: 70 | F70: 45 | G70: 3150
A71: 65 | B71: 换气扇 | C71: 10寸（壁式）、转速（1200/min） | D71: 个 | E71: 40 | F71: 60 | G71: 2400
A72: 66 | B72: 换气扇 | C72: 12寸（壁式）、转速（1200/min） | D72: 个 | E72: 40 | F72: 100 | G72: 4000
A73: 67 | B73: 厕所排气扇 | C73: 10寸壁式、功率37W，pp耐高温材质 | D73: 个 | E73: 50 | F73: 70 | G73: 3500
A74: 68 | B74: 哈夫节φ25 | C74: 长度6cm | D74: 个 | E74: 800 | F74: 12 | G74: 9600 | J74: 新国标
A75: 69 | B75: 哈夫节φ32 | C75: 长度10cm | D75: 个 | E75: 700 | F75: 15 | G75: 10500 | J75: 新国标
A76: 70 | B76: 哈夫节φ40 | C76: 长度10cm | D76: 个 | E76: 100 | F76: 20 | G76: 2000 | J76: 新国标
A77: 71 | B77: 哈夫节φ50 | C77: 长度20cm | D77: 个 | E77: 300 | F77: 30 | G77: 9000 | J77: 新国标
A78: 72 | B78: 哈夫节φ63 | C78: 长度20cm | D78: 个 | E78: 500 | F78: 35 | G78: 17500 | J78: 新国标
A79: 73 | B79: 哈夫节φ75 | C79: 长度30cm | D79: 个 | E79: 30 | F79: 60 | G79: 1800 | J79: 新国标
A80: 74 | B80: 哈夫节φ110 | C80: 长度20cm | D80: 个 | E80: 50 | F80: 55 | G80: 2750 | J80: 新国标
C81: 长度30cm | D81: 个 | E81: 50 | F81: 70 | G81: 3500 | J81: 新国标
C82: 长度40cm | D82: 个 | E82: 50 | F82: 85 | G82: 4250 | J82: 新国标
C83: 长度50cm | D83: 个 | E83: 50 | F83: 130 | G83: 6500 | J83: 新国标
A84: 75 | B84: 哈夫节φ160 | C84: 长度20cm | D84: 个 | E84: 10 | F84: 70 | G84: 700 | J84: 新国标
C85: 长度30cm | D85: 个 | E85: 10 | F85: 100 | G85: 1000 | J85: 新国标
C86: 长度40cm | D86: 个 | E86: 10 | F86: 150 | G86: 1500 | J86: 新国标
A87: 76 | B87: LED吸顶灯灯芯（15W） | D87: 个 | E87: 100 | F87: 10 | G87: 1000
A88: 77 | B88: LED吸顶灯灯芯（24W） | D88: 个 | E88: 200 | F88: 12 | G88: 2400
A89: 78 | B89: 节能灯暖光灯（9W) | D89: 个 | E89: 300 | F89: 5 | G89: 1500
A90: 79 | B90: 节能灯暖光灯(13W) | D90: 个 | E90: 400 | F90: 9 | G90: 3600
A91: 80 | B91: 节能灯冷光灯（9W) | D91: 个 | E91: 300 | F91: 5 | G91: 1500
A92: 81 | B92: 节能灯冷光灯(13W) | D92: 个 | E92: 500 | F92: 9 | G92: 4500
A93: 82 | B93: 节能灯冷光灯(28W) | D93: 个 | E93: 500 | F93: 12 | G93: 6000
A94: 83 | B94: LED10W灯条 | C94: 长1.2m | D94: 根 | E94: 80 | F94: 15 | G94: 1200
A95: 84 | B95: LED27W灯条 | C95: 长1.2m | D95: 根 | E95: 70 | F95: 20 | G95: 1400
A96: 85 | B96: LEDT5灯管（18W） | C96: 长1.2m | D96: 根 | E96: 50 | F96: 20 | G96: 1000
A97: 86 | B97: 路灯时控器 | C97: JWK200010HX和SDK-6‌ | D97: 个 | E97: 45 | F97: 50 | G97: 2250
A98: 87 | B98: 电工绝缘胶带 | C98: 宽度25mm，长度9米，厚度0.15mm | D98: 圈 | E98: 3000 | F98: 2 | G98: 6000
A99: 88 | B99: 生胶带 | C99: 宽度15mm，长度2米，厚度0.1mm | D99: 圈 | E99: 3500 | F99: 1.5 | G99: 5250
A100: 90 | B100: PE冷水管 | C100: φ20*2.0 | D100: m | E100: 4000 | F100: 2.2 | G100: =E100*F100 -> 8800 | J100: 新国标、满足压力1.6mpa
A101: 91 | C101: φ25*2.3 | D101: m | E101: 3500 | F101: 3 | G101: 10500 | J101: 新国标、满足压力1.6mpa
A102: 92 | C102: φ32*3.0 | D102: m | E102: 1500 | F102: 5 | G102: 7500 | J102: 新国标、满足压力1.6mpa
A103: 93 | C103: φ40*3.7 | D103: m | E103: 300 | F103: 7 | G103: 2100 | J103: 新国标、满足压力1.6mpa
A104: 94 | C104: φ50*4.6 | D104: m | E104: 1200 | F104: 10 | G104: 12000 | J104: 新国标、满足压力1.6mpa
A105: 95 | C105: φ63*5.8 | D105: m | E105: 2500 | F105: 15 | G105: 37500 | J105: 新国标、满足压力1.6mpa
C106: φ110*10 | D106: m | E106: 500 | F106: 32 | G106: 16000 | J106: 新国标、满足压力1.6mpa
A107: 96 | B107: φ20PE活接铜球阀球阀 | D107: 个 | E107: 400 | F107: 18 | G107: 7200 | J107: 新国标
A108: 97 | B108: φ25PE活接铜球阀球阀 | D108: 个 | E108: 600 | F108: 22 | G108: 13200 | J108: 新国标
A109: 98 | B109: φ32PE活接铜球阀球阀 | D109: 个 | E109: 700 | F109: 30 | G109: 21000 | J109: 新国标
A110: 99 | B110: φ40PE活接铜球阀球阀 | D110: 个 | E110: 200 | F110: 40 | G110: 8000 | J110: 新国标
A111: 100 | B111: φ50PE活接铜球阀球阀 | D111: 个 | E111: 200 | F111: 62 | G111: 12400 | J111: 新国标
A112: 101 | B112: φ63PE活接铜球阀球阀 | D112: 个 | E112: 600 | F112: 80 | G112: 48000 | J112: 新国标
A113: 102 | B113: φ20PE直接 | D113: 个 | E113: 500 | F113: 0.8 | G113: 400 | J113: 新国标
A114: 103 | B114: φ25PE直接 | D114: 个 | E114: 500 | F114: 1.2 | G114: 600 | J114: 新国标
A115: 104 | B115: φ32PE直接 | D115: 个 | E115: 500 | F115: 1.5 | G115: 750 | J115: 新国标
A116: 105 | B116: φ40PE直接 | D116: 个 | E116: 300 | F116: 2 | G116: 600 | J116: 新国标
A117: 106 | B117: φ50PE直接 | D117: 个 | E117: 300 | F117: 2.5 | G117: 750 | J117: 新国标
A118: 107 | B118: φ63PE直接 | D118: 个 | E118: 700 | F118: 4 | G118: 2800 | J118: 新国标
A119: 108 | B119: φ20PE弯头 | D119: 个 | E119: 450 | F119: 0.8 | G119: 360 | J119: 新国标
A120: 109 | B120: φ25PE弯头 | D120: 个 | E120: 600 | F120: 1.2 | G120: 720 | J120: 新国标
A121: 110 | B121: φ32PE弯头 | D121: 个 | E121: 600 | F121: 1.5 | G121: 900 | J121: 新国标
A122: 111 | B122: φ40PE弯头 | D122: 个 | E122: 200 | F122: 2 | G122: 400 | J122: 新国标
A123: 112 | B123: φ50PE弯头 | D123: 个 | E123: 200 | F123: 4 | G123: 800 | J123: 新国标
A124: 113 | B124: φ63PE弯头 | D124: 个 | E124: 600 | F124: 8 | G124: 4800 | J124: 新国标
A125: 114 | B125: φPE25变20三通 | D125: 个 | E125: 300 | F125: 1.5 | G125: 450 | J125: 新国标
A126: 115 | B126: φPE32变25三通 | D126: 个 | E126: 300 | F126: 3 | G126: 900 | J126: 新国标
A127: 116 | B127: φPE50变32三通 | D127: 个 | E127: 300 | F127: 5 | G127: 1500 | J127: 新国标
A128: 117 | B128: φPE63变50三通 | D128: 个 | E128: 200 | F128: 8 | G128: 1600 | J128: 新国标
A129: 118 | B129: φ25PE管变20直接 | D129: 个 | E129: 200 | F129: 1 | G129: 200 | J129: 新国标
A130: 119 | B130: φ32PE管变25直接 | D130: 个 | E130: 600 | F130: 1.2 | G130: 720 | J130: 新国标
A131: 120 | B131: φ40PE管变32直接 | D131: 个 | E131: 300 | F131: 1.8 | G131: 540 | J131: 新国标
A132: 121 | B132: φ50PE管变40直接 | D132: 个 | E132: 300 | F132: 4 | G132: =E132*F132 -> 1200 | J132: 新国标
A133: 122 | B133: φ63PE管变32直接 | D133: 个 | E133: 700 | F133: 7 | G133: 4900 | J133: 新国标
A134: 123 | B134: φ63PE管变50直接 | D134: 个 | E134: 300 | F134: 7.5 | G134: 2250 | J134: 新国标
A135: 124 | B135: φ20PE堵帽 | D135: 个 | E135: 500 | F135: 0.5 | G135: 250 | J135: 新国标
A136: 125 | B136: φ25PE堵帽 | D136: 个 | E136: 400 | F136: 0.8 | G136: 320 | J136: 新国标
A137: 126 | B137: φ32PE堵帽 | D137: 个 | E137: 700 | F137: 1.5 | G137: 1050 | J137: 新国标
A138: 127 | B138: φ40PE堵帽 | D138: 个 | E138: 150 | F138: 1.8 | G138: 270 | J138: 新国标
A139: 128 | B139: φ50PE堵帽 | D139: 个 | E139: 150 | F139: 3 | G139: 450 | J139: 新国标
A140: 129 | B140: φ63PE堵帽 | D140: 个 | E140: 700 | F140: 5 | G140: 3500 | J140: 新国标
A141: 130 | B141: φ20PE管（1/2）内丝弯头 | D141: 个 | E141: 300 | F141: 8 | G141: 2400 | J141: 新国标
A142: 131 | B142: φ25PE管（3/4）内丝弯头 | D142: 个 | E142: 400 | F142: 9 | G142: 3600 | J142: 新国标
A143: 132 | B143: φ25PE取水阀 | C143: 塑料 | D143: 个 | E143: 400 | F143: 10 | G143: 4000 | J143: 新国标
A144: 133 | B144: φ20PE取水阀 | C144: 塑料 | D144: 个 | E144: 1000 | F144: 12 | G144: 12000 | J144: 新国标
A145: 134 | B145: φ20纯铜取水阀 | D145: 个 | E145: 300 | F145: 50 | G145: 15000 | J145: 新国标
A146: 135 | B146: φ25纯铜取水阀 | D146: 个 | E146: 200 | F146: 80 | G146: 16000 | J146: 新国标
A147: 136 | B147: φ20变25双外丝直接（不锈钢） | D147: 个 | E147: 500 | F147: 3 | G147: 1500 | J147: 新国标
A148: 137 | B148: φ25变32双外丝直接（不锈钢） | D148: 个 | E148: 500 | F148: 5 | G148: 2500 | J148: 新国标
A149: 138 | B149: 大喷头（地埋旋转式360°） | C149: 地埋式旋转升降喷头，地埋旋转式360°，射程8米-15米。喷头工作压力2-4KG。接口为6分（3/4）外螺纹接口 | D149: 个 | E149: 300 | F149: 40 | G149: 12000 | J149: =_xlfn.DISPIMG("ID_F96B702B96FF4C05AA5F68C85DDB4543",1) -> =DISPIMG("ID_F96B702B96FF4C05AA5F68C85DDB4543",1)
A150: 139 | B150: 地埋式升降散射喷头 | C150: 角度为25°-360°散射地埋喷头，接口为6分（1/2）外螺纹接口，喷洒半径为4-5米 | D150: 个 | E150: 600 | F150: 20 | G150: 12000 | J150: =_xlfn.DISPIMG("ID_CE1CCFA2416E4F0A8F779BDAB76C1D6F",1) -> =DISPIMG("ID_CE1CCFA2416E4F0A8F779BDAB76C1D6F",1)
A151: 140 | B151: 合金可调摇臂喷头 | C151: 喷头主体为铝合金材质，射程直径为8米-12米，接口为4分（3/4）外螺纹接口 | D151: 个 | E151: 200 | F151: 15 | G151: 3000 | J151: =_xlfn.DISPIMG("ID_BF4E2CF7ABB74C3EB0B1DABAA44165C3",1) -> =DISPIMG("ID_BF4E2CF7ABB74C3EB0B1DABAA44165C3",1)
A152: 141 | B152: DN50变32分水器 | D152: 个 | E152: 80 | F152: 20 | G152: 1600 | J152: 新国标
A153: 142 | B153: DN110变63分水器 | D153: 个 | E153: 50 | F153: 50 | G153: 2500 | J153: 新国标
A154: 143 | B154: 波纹管 | C154: DN20 | D154: 米 | E154: 2500 | F154: 1.5 | G154: 3750 | J154: 白色阻燃塑料电线套管
C155: DN300 | D155: 米 | E155: 300 | F155: 20 | G155: 6000 | J155: 双壁，内劲壁厚2.5mm
A156: 144 | B156: 单联单控明装开关 | D156: 个 | E156: 300 | F156: 7 | G156: 2100
A157: 145 | B157: 单联单控暗装开关 | D157: 个 | E157: 150 | F157: 7 | G157: 1050
A158: 146 | B158: 双联单控暗装开关 | D158: 个 | E158: 200 | F158: 9 | G158: 1800
A159: 147 | B159: 双联单控明装开关 | D159: 个 | E159: 300 | F159: 9 | G159: 2700
A160: 148 | B160: 三联单控安装开关 | D160: 个 | E160: 100 | F160: 10 | G160: 1000
A161: 149 | B161: 明装五孔插座 | D161: 个 | E161: 500 | F161: 8 | G161: 4000
A162: 150 | B162: 暗装五孔插座 | D162: 个 | E162: 100 | F162: 8 | G162: 800
A163: 151 | B163: 明装1开五孔插座 | D163: 个 | E163: 200 | F163: 10 | G163: 2000
A164: 152 | B164: 1.5mm2电线（护导线） | C164: 100米/圈 | D164: 圈 | E164: 25 | F164: 240 | G164: =E164*F164 -> 6000 | J164: 国标，铜芯线
A165: 153 | B165: 2.5mm2电线（护导线） | C165: 100米/圈 | D165: 圈 | E165: 30 | F165: 320 | G165: 9600
A166: 154 | B166: 4mm2电线（护导线） | C166: 100米/圈 | D166: 圈 | E166: 25 | F166: 560 | G166: 14000
A167: 155 | B167: 1.5mm²钢钉线卡 | C167: 50颗/袋 | D167: 带 | E167: 200 | F167: 4 | G167: 800
A168: 156 | B168: 2.5mm²钢钉线卡 | C168: 50颗/袋 | D168: 带 | E168: 300 | F168: 5 | G168: 1500
A169: 157 | B169: 截止阀 | C169: PEφ32 | D169: 个 | E169: 500 | F169: 32 | G169: 16000 | J169: 新国标
C170: PEφ20 | D170: 个 | E170: 350 | F170: 15 | G170: 5250 | J170: 新国标
C171: PEφ25 | D171: 个 | E171: 600 | F171: 21 | G171: 12600 | J171: 新国标
C172: PEφ63 | D172: 个 | E172: 350 | F172: 46 | G172: 16100 | J172: 新国标
A173: 158 | B173: 单级空开(1P-16A) | D173: 个 | E173: 100 | F173: 8 | G173: 800
A174: 159 | B174: 单级空开(1P-32A) | D174: 个 | E174: 100 | F174: 10 | G174: 1000
A175: 160 | B175: 双联空开(双联2P-16A) | D175: 个 | E175: 400 | F175: 13 | G175: 5200
A176: 161 | B176: 双联空开(双联2P-32A) | D176: 个 | E176: 450 | F176: 14 | G176: 6300
A177: 162 | B177: 双联空开(双联2P-63A) | D177: 个 | E177: 200 | F177: 15 | G177: 3000
A178: 163 | B178: 漏电保护器 | C178: 2P-16A | D178: 个 | E178: 300 | F178: 20 | G178: 6000
C179: 2P-32A | D179: 个 | E179: 300 | F179: 25 | G179: 7500
C180: 2P-63A | D180: 个 | E180: 300 | F180: 30 | G180: 9000
C181: 2P-100A | D181: 个 | E181: 40 | F181: 50 | G181: 2000
A182: 164 | B182: 自锁式扎带 | C182: （2.5*200mm） | D182: 包 | E182: 200 | F182: 8 | G182: 1600 | J182: 100根/包
A183: 165 | B183: 自锁式扎带 | C183: （3.6*370mm） | D183: 包 | E183: 200 | F183: 10 | G183: 2000 | J183: 100根/包
A184: 166 | B184: 蹲便器 | C184: 长度55cm，宽度42cm，深度15cm-20cm | D184: 个 | E184: 10 | F184: 200 | G184: 2000 | J184: 自带存水弯，配水箱和连接管
A185: 167 | B185: 国标款地上式消火栓 | C185: sc100/65-1.6，材质为球墨铸铁，栓头阀杆为铜杆，栓体全烤漆处理，出水口连接处加装铜扣，螺母、压环均为铜制 | D185: 个 | E185: 20 | F185: 850 | G185: 17000 | J185: 配胶垫、螺栓
A186: 168 | B186: 圆形LED超薄筒灯 | C186: 4寸 | D186: 个 | E186: 100 | F186: 8 | G186: 800
C187: 2.5寸 | D187: 个 | E187: 100 | F187: 6 | G187: 600
C188: 6寸 | D188: 个 | E188: 100 | F188: 10 | G188: 1000
A189: 169 | B189: 走线槽板 | C189: pvc材质，宽2.4cm*厚1.4cm | D189: 米 | E189: 3000 | F189: 1.6 | G189: 4800
A190: 170 | B190: 空开箱 | C190: 宽30cm*长40cm，深度15cm | D190: 个 | E190: 15 | F190: 55 | G190: 825 | J190: 材质为镀锌材质
A191: 171 | B191: 回路箱 | C191: 明装底座尺寸175mm*180mm*75mm | D191: 个 | E191: 50 | F191: 30 | G191: 1500 | J191: 产品材质为冷轧钢板，开孔距离为137mm
C192: 明装底座尺寸300mm*180mm*75mm | D192: 个 | E192: 50 | F192: 40 | G192: 2000 | J192: 产品材质为冷轧钢板，开孔距离为265mm
A193: 172 | B193: PVC管 | C193: φ160 | D193: 米 | E193: 350 | F193: 25 | G193: 8750 | J193: 壁厚4mm
C194: φ110 | D194: 米 | E194: 500 | F194: 15 | G194: 7500 | J194: 壁厚4mm
C195: φ40 | D195: 米 | E195: 600 | F195: 8 | G195: 4800 | J195: 壁厚2mm
C196: φ32 | D196: 米 | E196: 400 | F196: 5 | G196: =E196*F196 -> 2000 | J196: 壁厚2mm
A197: 173 | B197: 透明PVC胶水 | C197: 500mg/瓶 | D197: 瓶 | E197: 60 | F197: 8 | G197: =E197*F197 -> 480
A198: 174 | B198: T5一体化灯管 | C198: 规格为1200mm*22mm*35mm，灯管为LED双端灯管，两头含插针 | D198: 只 | E198: 50 | F198: 18 | G198: =E198*F198 -> 900 | J198: =_xlfn.DISPIMG("ID_0628D37CA97E4B05B8926BA8F3EC9BA4",1) -> =DISPIMG("ID_0628D37CA97E4B05B8926BA8F3EC9BA4",1)
A199: 175 | B199: 海底线 | D199: 米 | E199: 300 | F199: 8 | G199: =E199*F199 -> 2400 | J199: 新国标、4m㎡铜芯
A200: 合计 | G200: =SUM(G3:G199) -> 898889 | J200: (开票税率 %）
... 4 more rows
